{"text_format":"1","workbook":"xlsx","n_sheets":1,"sheets":["Presupuesto Proyecto Ca"],"not_rendered":{"charts":0,"images":2,"macros":1,"external_links":0,"defined_names":5,"comments":1,"pivot_tables":0},"unopened":[],"bounds":{"document_bytes":16777216,"sheet_cells":100000,"rows_first":2000,"rows_last":500,"rows_between":2000,"halvings":0,"cell_chars":16384,"cell_head_chars":4096},"cells_cut":0,"cells_raw":0,"read":"whole","date_system":"1900"}

{"sheet":"Presupuesto Proyecto Ca","index":0,"n_rows":189,"n_cols":6,"rows_kept":189,"cut":false,"hidden":false,"merged":[]}
[null,null,null,null,null,"Documento básico 3"]
[null,null,null,null,null,"Ámbito temático \"C\": Comunicación - Investigación"]
["Subvencions de l'Ajuntament de Barcelona per a",null,null,null,null,"Modalidad \"a\":Acciones de mejora de la comunicación de la oferta de bienes,"]
["la promoció i reforç de l'economia social i solidària 2019",null,null,null,null,"productos y servicios de empresas, entidades y proyectos de economía social y solidaria"]
[null,null,null,null,null,"Se deben rellenar las celdas en blanco, y añadir filas en caso que sea necesario."]
[null,null,null,null,null,"Consultar anotaciones a pie de página antes de completar los datos."]
[null,null,null,null,null," "]
["DATOS BÁSICOS"]
["Nombre de la persona jurídica/física",null,null,null,null,"  "]
["NIF de la persona jurídica/física"]
["Denominación del proyecto"]
["Importe total del proyecto"]
["Importe imputable a la subvención municipal"]
["% de l’Importe solicitado a la subvención municipal a cambiar en REC (Recurs Econòmic Ciutadà) "]
["Importe de l'aportació / Cofinanciación de la entidad"]
["% de l'Importe solicitado respecto al total del proyecto",{"$f":"B13/B12","v":{"$error":"#DIV/0!"}}]
["Fecha de inicio del proyecto subvencionado (dd/mm/aaaa)"]
["Fecha de fin del proyecto subvencionado (dd/mm/aaaa)"]
[]
["PREVISIÓN DE GASTOS DEL PROYECTO"]
[]
["Partidas","Importe total del proyecto","Importe imputable a la subvención municipal","Importe de l'aportació / Cofinanciación de la entidad"]
["D.1  Nóminas y seguridad social IRPF (régimen general o régimen de autónomos) del personal propio vinculado al proyecto.",{"$f":"SUM(DespesesProjecte[[#This Row],[Importe imputable a la subvención municipal]],DespesesProjecte[[#This Row],[Importe de l''aportació / Cofinanciación de la entidad]])","v":0},{"$f":"SUM(C24:C28)","v":0},{"$f":"SUM(D24:D28)","v":0}]
[]
[]
[]
[]
[]
["D.2 Rendimientos anuals netos del empresario/a individual (ver 13.2 bases)",{"$f":"SUM(DespesesProjecte[[#This Row],[Importe imputable a la subvención municipal]],DespesesProjecte[[#This Row],[Importe de l''aportació / Cofinanciación de la entidad]])","v":0},{"$f":"SUM(C30:C35)","v":0},{"$f":"SUM(D30:D35)","v":0}]
[]
[]
[]
[]
[]
[]
["TOTAL DE GASTOS DEL PERSONAL (Max 50% del importe imputable a la subvención municipal)",{"$f":"SUM(B23,B29)","v":0},{"$f":"SUM(C23,C29)","v":0},{"$f":"SUM(D23,D29)","v":0}]
["D.3  Trabajos realizados por profesionales y empresas externas directamente vinculados al proyecto",{"$f":"SUM(DespesesProjecte[[#This Row],[Importe imputable a la subvención municipal]],DespesesProjecte[[#This Row],[Importe de l''aportació / Cofinanciación de la entidad]])","v":0},{"$f":"SUM(C38:C42)","v":0},{"$f":"SUM(D38:D42)","v":0}]
[]
[]
[]
[]
[]
["D.4 Alquiler de bienes muebles/inmuebles directamente vinculados al proyecto.",{"$f":"SUM(DespesesProjecte[[#This Row],[Importe imputable a la subvención municipal]],DespesesProjecte[[#This Row],[Importe de l''aportació / Cofinanciación de la entidad]])","v":0},{"$f":"SUM(C44:C48)","v":0},{"$f":"SUM(D44:D48)","v":0}]
[]
[]
[]
[]
[]
["D.5 Adquisición de materiales y bienes consumibles íntegramente imputables al proyecto.",{"$f":"SUM(DespesesProjecte[[#This Row],[Importe imputable a la subvención municipal]],DespesesProjecte[[#This Row],[Importe de l''aportació / Cofinanciación de la entidad]])","v":0},{"$f":"SUM(C50:C54)","v":0},{"$f":"SUM(D50:D54)","v":0}]
[]
[]
[]
[]
[]
["D.6 Transporte – mensajería imputables al proyecto",{"$f":"SUM(DespesesProjecte[[#This Row],[Importe imputable a la subvención municipal]],DespesesProjecte[[#This Row],[Importe de l''aportació / Cofinanciación de la entidad]])","v":0},{"$f":"SUM(C56:C60)","v":0},{"$f":"SUM(D56:D60)","v":0}]
[]
[]
[]
[]
[]
["D.7 Publicidad y propaganda de las actividades vinculadas al proyecto.",{"$f":"SUM(DespesesProjecte[[#This Row],[Importe imputable a la subvención municipal]],DespesesProjecte[[#This Row],[Importe de l''aportació / Cofinanciación de la entidad]])","v":0},{"$f":"SUM(C62:C66)","v":0},{"$f":"SUM(D62:D66)","v":0}]
[]
[]
[]
[]
[]
["D.8  Alojamiento y dietas, del personal contratado y voluntarios.",{"$f":"SUM(DespesesProjecte[[#This Row],[Importe imputable a la subvención municipal]],DespesesProjecte[[#This Row],[Importe de l''aportació / Cofinanciación de la entidad]])","v":0},{"$f":"SUM(C68:C72)","v":0},{"$f":"SUM(D68:D72)","v":0}]
[]
[]
[]
[]
[]
["D.9  Ayudas al transporte para los/las participantes de los proyectos en caso que sea necesario, de manera justificada.",{"$f":"SUM(DespesesProjecte[[#This Row],[Importe imputable a la subvención municipal]],DespesesProjecte[[#This Row],[Importe de l''aportació / Cofinanciación de la entidad]])","v":0},{"$f":"SUM(C74:C78)","v":0},{"$f":"SUM(D74:D78)","v":0}]
[]
[]
[]
[]
[]
["D.10  Viajes y desplazamientos imputables a las actividades del proyecto.",{"$f":"SUM(DespesesProjecte[[#This Row],[Importe imputable a la subvención municipal]],DespesesProjecte[[#This Row],[Importe de l''aportació / Cofinanciación de la entidad]])","v":0},{"$f":"SUM(C80:C84)","v":0},{"$f":"SUM(D80:D84)","v":0}]
[]
[]
[]
[]
[]
["D.11 Tributos, cuando sean abonados directamente por la persona jurídica o física beneficiaria.",{"$f":"SUM(DespesesProjecte[[#This Row],[Importe imputable a la subvención municipal]],DespesesProjecte[[#This Row],[Importe de l''aportació / Cofinanciación de la entidad]])","v":0},{"$f":"SUM(C86:C90)","v":0},{"$f":"SUM(D86:D90)","v":0}]
[]
[]
[]
[]
[]
["D.12  Gastos del informe de auditoria, cuando sea obligatoria su presentación por el importe de la subvención. ",{"$f":"SUM(DespesesProjecte[[#This Row],[Importe imputable a la subvención municipal]],DespesesProjecte[[#This Row],[Importe de l''aportació / Cofinanciación de la entidad]])","v":0},{"$f":"SUM(C92:C96)","v":0},{"$f":"SUM(D92:D96)","v":0}]
[]
[]
[]
[]
[]
["D.13  Otros gastos que de manera justificada y por la tipologia del proyecto puedan imputarse directamente al proyecto.",{"$f":"SUM(DespesesProjecte[[#This Row],[Importe imputable a la subvención municipal]],DespesesProjecte[[#This Row],[Importe de l''aportació / Cofinanciación de la entidad]])","v":0},{"$f":"SUM(C98:C102)","v":0},{"$f":"SUM(D98:D102)","v":0}]
[]
[]
[]
[]
[]
["TOTAL DE OTROS GASTOS DIRECTOS",{"$f":"SUM(B37,B43,B49,B55,B61,B67,B73,B79,B85,B91,B97)","v":0},{"$f":"SUM(C37,C43,C49,C55,C61,C67,C73,C79,C85,C91,C97)","v":0},{"$f":"SUM(D37,D43,D49,D55,D61,D67,D73,D79,D85,D91,D97)","v":0}]
["TOTAL GASTOS DIRECTOS (los que se identifiquen directament con el proyecto)",{"$f":"SUM(B36,B103)","v":0},{"$f":"SUM(C36,C103)","v":0},{"$f":"SUM(D36,,D103)","v":0}]
["I.1 Personal de soporte al proyecto (Nóminas y seguridad social)",{"$f":"SUM(DespesesProjecte[[#This Row],[Importe imputable a la subvención municipal]],DespesesProjecte[[#This Row],[Importe de l''aportació / Cofinanciación de la entidad]])","v":0},{"$f":"SUM(C106:C110)","v":0},{"$f":"SUM(D106:D110)","v":0}]
[]
[]
[]
[]
[]
["I.2  Seguros",{"$f":"SUM(DespesesProjecte[[#This Row],[Importe imputable a la subvención municipal]],DespesesProjecte[[#This Row],[Importe de l''aportació / Cofinanciación de la entidad]])","v":0},{"$f":"SUM(C112:C116)","v":0},{"$f":"SUM(D112:D116)","v":0}]
[]
[]
[]
[]
[]
["I.3  Amortitzación",{"$f":"SUM(DespesesProjecte[[#This Row],[Importe imputable a la subvención municipal]],DespesesProjecte[[#This Row],[Importe de l''aportació / Cofinanciación de la entidad]])","v":0},{"$f":"SUM(C118:C122)","v":0},{"$f":"SUM(D118:D122)","v":0}]
[]
[]
[]
[]
[]
["I.4  Alquiler de bienes inmuebles",{"$f":"SUM(DespesesProjecte[[#This Row],[Importe imputable a la subvención municipal]],DespesesProjecte[[#This Row],[Importe de l''aportació / Cofinanciación de la entidad]])","v":0},{"$f":"SUM(C124:C128)","v":0},{"$f":"SUM(D124:D128)","v":0}]
[]
[]
[]
[]
[]
["I.5  Adquisición  de materiales y bienes consumibles parcialmente imputables al proyecto",{"$f":"SUM(DespesesProjecte[[#This Row],[Importe imputable a la subvención municipal]],DespesesProjecte[[#This Row],[Importe de l''aportació / Cofinanciación de la entidad]])","v":0},{"$f":"SUM(C130:C134)","v":0},{"$f":"SUM(D130:D134)","v":0}]
[]
[]
[]
[]
[]
["I.6  Mantenimiento de edificios i/o instalaciones",{"$f":"SUM(DespesesProjecte[[#This Row],[Importe imputable a la subvención municipal]],DespesesProjecte[[#This Row],[Importe de l''aportació / Cofinanciación de la entidad]])","v":0},{"$f":"SUM(C136:C140)","v":0},{"$f":"SUM(D136:D140)","v":0}]
[]
[]
[]
[]
[]
["I.7  Comunicaciones (teléfono, correos, conexión a internet)",{"$f":"SUM(DespesesProjecte[[#This Row],[Importe imputable a la subvención municipal]],DespesesProjecte[[#This Row],[Importe de l''aportació / Cofinanciación de la entidad]])","v":0},{"$f":"SUM(C142:C146)","v":0},{"$f":"SUM(D142:D146)","v":0}]
[]
[]
[]
[]
[]
["I.8  Gastos financieros",{"$f":"SUM(DespesesProjecte[[#This Row],[Importe imputable a la subvención municipal]],DespesesProjecte[[#This Row],[Importe de l''aportació / Cofinanciación de la entidad]])","v":0},{"$f":"SUM(C148:C152)","v":0},{"$f":"SUM(D148:D152)","v":0}]
[]
[]
[]
[]
[]
["I.9  Suministros",{"$f":"SUM(DespesesProjecte[[#This Row],[Importe imputable a la subvención municipal]],DespesesProjecte[[#This Row],[Importe de l''aportació / Cofinanciación de la entidad]])","v":0},{"$f":"SUM(C154:C158)","v":0},{"$f":"SUM(D154:D158)","v":0}]
[]
[]
[]
[]
[]
["I.10   Trabajos realizados por otras empresas, parcialmente imputables a al proyecto (limpieza, seguridad...)",{"$f":"SUM(DespesesProjecte[[#This Row],[Importe imputable a la subvención municipal]],DespesesProjecte[[#This Row],[Importe de l''aportació / Cofinanciación de la entidad]])","v":0},{"$f":"SUM(C160:C164)","v":0},{"$f":"SUM(D160:D164)","v":0}]
[]
[]
[]
[]
[]
["TOTAL GASTOS INDIRECTOS (se podran asignar al proyecto haciendo uso de un porcentaje de asignación) - Máximo 10% del importe imputable a la subvención municipal",{"$f":"SUM(B105,B111,B117,B123,B129,B135,B141,B147,B153,B159)","v":0},{"$f":"SUM(C105,C111,C117,C123,C129,C135,C141,C147,C153,C159)","v":0},{"$f":"SUM(D105,D111,D117,D123,D129,D135,D141,D147,D153,D159)","v":0}]
["TOTAL DE GASTOS PREVISTOS",{"$f":"SUM(B165,B104)","v":0},{"$f":"SUM(C165,C104)","v":0},{"$f":"SUM(D165,D104)","v":0}]
[]
[]
["1.  La cuantía de la subvención otorgada no superará el 80% del gasto total del proyecto a subvencionar. "]
["2.  El importe máximo de subvención para la modalidad \"a\" del ámbito temático de Comunicación - Investigación (Ca) es de 8.000 €."]
["3.  En caso que la solicitud presentada sobrepase el importe máximo, se considerará como importe solicitado el máximo de lo establecido en la convocatoria. "]
["4.  Se limita a un  máximo del 50%  el importe de la subvención para gastos de personal propio que participa de forma directa y debidamente en el proyecto."]
["5.  Los gastos indirectos imputados al proyecto detallados, no podran superar el 10% del importe de la subvención. "]
["6.  Sólo con carácter excepcional, los/as empresarios/arias individuales que no tienen personas trabajadores en plantilla"]
["     podrán acreditar los trabajos mediante una declaración responsable acompañada de las declaraciones IRPF (modelo 130) del ejercicio corriente. "]
["     El precio/hora imputado al proyecto subvencionado no podrá superar la cantidad resultante de dividir los rendimeintos anuales netos del empresario/aria individual por 1800."]
["7.  El carácter subvencionable del gasto de amortización estará sujeto a las condiciones siguientes:"]
["- Que las subvenciones no hayan contribuidio a la compra de bienes."]
["- Que la amortitzación se calcula de conformidad con las normas de compatibilidad generalmente aceptadas. "]
["- Que el coste se refiera al periodo subvencionable."]
["8. En ningún caso se considerarán gastos subvencionables:"]
["- Los impuestos indirectos cuando sean susceptibles de recuperación o compensación, ni los impuestos sobre la renta. "]
["- Los gastos de inversión, incluidas las adquisiciones de bienes muebles. "]
["- Los gastos realizados con fecha anterior al inicio del proyecto y fecha posterior a la fecha de finalización del proyecto. "]
["- Otros gastos Que se indiquen en la convocatoria."]
["9.  Entre la resolución provisional y definitiva se acreditará la constitución de la cooperativa o sociedad laboral,"]
["      y se acredite la presentación de los documentos de inscripción en el registro correspondiente y el alta censal."]
["10.  Cuando algún gasto sea superior a 12.000€ sin IVA, en el caso de prestaciones de servicios o libramiento de bienes, y para aquellos gastos de más de 30.000 €, sin IVA, en el caso "]
["      de ejecución de obras, tendrán que incorporar tres presupuestos solicitados, y argumentar el motivo de la adjudicación, en el caso de no ser la propuesta más ventajosa económicamente."]